[Event "January 2 Early 2024"]
[Site "https://www.chess.com"]
[Date "2024.01.02"]
[Round "3"]
[White "Rees, Ioan"]
[Black "Spata, German"]
[Result "0-1"]
[Board "102"]
[TimeControl "180+1"]
[WhiteFideId "1801236"]
[BlackFideId "113026"]
[WhiteElo "2421"]
[BlackElo "2660"]
[WhiteTeam "WLS"]
[BlackTeam "ARG"]
[WhiteClock "0:01:19"]
[BlackClock "0:00:18"]

1. e4 {[%clk 0:03:00]}  g6 {[%clk 0:02:59]} 2. d4 {[%clk 0:03:00]}  Bg7 {[%clk 0:02:59]} 3. Nf3 {[%clk 0:03:01]}  d6 {[%clk 0:02:59]} 4. Bd3 {[%clk 0:03:01]}  a6 {[%clk 0:02:59]} 5. O-O {[%clk 0:03:01]}  Bg4 {[%clk 0:02:51]} 6. c3 {[%clk 0:03:00]}  Nc6 {[%clk 0:02:44]} 7. Nbd2 {[%clk 0:02:58]}  e5 {[%clk 0:02:41]} 8. d5 {[%clk 0:02:45]}  Nce7 {[%clk 0:02:41]} 9. h3 {[%clk 0:02:41]}  Bd7 {[%clk 0:02:38]} 10. Re1 {[%clk 0:02:39]}  Nf6 {[%clk 0:02:34]} 11. c4 {[%clk 0:02:38]}  O-O {[%clk 0:02:34]} 12. Nf1 {[%clk 0:02:36]}  Nh5 {[%clk 0:02:27]} 13. Ng3 {[%clk 0:02:36]}  Nxg3 {[%clk 0:02:15]} 14. fxg3 {[%clk 0:02:37]}  h6 {[%clk 0:02:14]} 15. g4 {[%clk 0:02:35]}  b5 {[%clk 0:01:56]} 16. Qc2 {[%clk 0:02:25]}  c6 {[%clk 0:01:53]} 17. b3 {[%clk 0:02:17]}  bxc4 {[%clk 0:01:46]} 18. bxc4 {[%clk 0:02:17]}  cxd5 {[%clk 0:01:45]} 19. cxd5 {[%clk 0:02:14]}  Qa5 {[%clk 0:01:26]} 20. Bd2 {[%clk 0:02:09]}  Qa4 {[%clk 0:01:27]} 21. Qxa4 {[%clk 0:02:08]}  Bxa4 {[%clk 0:01:26]} 22. Rec1 {[%clk 0:02:07]}  Rfc8 {[%clk 0:01:22]} 23. Rxc8+ {[%clk 0:02:01]}  Nxc8 {[%clk 0:01:22]} 24. Rc1 {[%clk 0:01:58]}  Nb6 {[%clk 0:01:17]} 25. Ba5 {[%clk 0:01:58]}  Nd7 {[%clk 0:01:15]} 26. Bb4 {[%clk 0:01:56]}  Bf8 {[%clk 0:01:11]} 27. Nd2 {[%clk 0:01:56]}  Rb8 {[%clk 0:01:01]} 28. a3 {[%clk 0:01:54]}  Bb5 {[%clk 0:00:58]} 29. Bxb5 {[%clk 0:01:50]}  axb5 {[%clk 0:00:54]} 30. Rc6 {[%clk 0:01:49]}  Nc5 {[%clk 0:00:52]} 31. Kf2 {[%clk 0:01:35]}  Nd3+ {[%clk 0:00:28]} 32. Ke3 {[%clk 0:01:34]}  Nxb4 {[%clk 0:00:29]} 33. axb4 {[%clk 0:01:34]}  Ra8 {[%clk 0:00:27]} 34. Rb6 {[%clk 0:01:34]}  Be7 {[%clk 0:00:26]} 35. Rxb5 {[%clk 0:01:33]}  Bg5+ {[%clk 0:00:22]} 36. Kd3 {[%clk 0:01:31]}  Ra3+ {[%clk 0:00:22]} 37. Kc4 {[%clk 0:01:19]}  Bxd2 {[%clk 0:00:21]} 38. Rb8+ {[%clk 0:01:19]}  Kg7 {[%clk 0:00:21]} 39. b5 {[%clk 0:01:19]}  Rc3+ {[%clk 0:00:18]} 0-1

[Event "January 2 Early 2024"]
[Site "https://www.chess.com"]
[Date "2024.01.02"]
[Round "3"]
[White "Piesik, Piotr"]
[Black "Alivodic, Dario"]
[Result "1-0"]
[Board "104"]
[TimeControl "180+1"]
[WhiteFideId "1136194"]
[BlackFideId "16501632"]
[WhiteElo "2655"]
[BlackElo "2417"]
[WhiteTeam "CZE"]
[BlackTeam "MNE"]
[WhiteClock "0:00:34"]
[BlackClock "0:00:00"]

1. Nf3 {[%clk 0:03:00]}  d5 {[%clk 0:02:59]} 2. g3 {[%clk 0:03:00]}  Nf6 {[%clk 0:02:51]} 3. Bg2 {[%clk 0:03:00]}  Bg4 {[%clk 0:02:51]} 4. O-O {[%clk 0:02:59]}  Nbd7 {[%clk 0:02:49]} 5. d3 {[%clk 0:03:00]}  e5 {[%clk 0:02:48]} 6. Nbd2 {[%clk 0:03:00]}  Bc5 {[%clk 0:02:45]} 7. e4 {[%clk 0:03:00]}  dxe4 {[%clk 0:02:43]} 8. dxe4 {[%clk 0:03:01]}  Qe7 {[%clk 0:02:43]} 9. h3 {[%clk 0:03:01]}  Bh5 {[%clk 0:02:37]} 10. Qe1 {[%clk 0:03:01]}  O-O {[%clk 0:02:32]} 11. Nb3 {[%clk 0:02:58]}  Bb6 {[%clk 0:02:27]} 12. Nh4 {[%clk 0:02:58]}  Bg6 {[%clk 0:02:22]} 13. Nxg6 {[%clk 0:02:54]}  hxg6 {[%clk 0:02:21]} 14. a4 {[%clk 0:02:54]}  a6 {[%clk 0:02:14]} 15. a5 {[%clk 0:02:54]}  Ba7 {[%clk 0:02:14]} 16. Be3 {[%clk 0:02:54]}  Nc5 {[%clk 0:02:09]} 17. Nd2 {[%clk 0:02:52]}  Ne6 {[%clk 0:01:38]} 18. c3 {[%clk 0:02:51]}  Bxe3 {[%clk 0:01:33]} 19. Qxe3 {[%clk 0:02:51]}  Rfd8 {[%clk 0:01:33]} 20. Nc4 {[%clk 0:02:50]}  Qc5 {[%clk 0:01:30]} 21. Qxc5 {[%clk 0:02:50]}  Nxc5 {[%clk 0:01:31]} 22. Nxe5 {[%clk 0:02:45]}  Ncxe4 {[%clk 0:01:22]} 23. Rfe1 {[%clk 0:02:45]}  Nd6 {[%clk 0:01:18]} 24. Rad1 {[%clk 0:02:34]}  Re8 {[%clk 0:00:29]} 25. c4 {[%clk 0:02:31]}  Rab8 {[%clk 0:00:18]} 26. c5 {[%clk 0:02:30]}  Nb5 {[%clk 0:00:18]} 27. c6 {[%clk 0:02:16]}  bxc6 {[%clk 0:00:17]} 28. Nxc6 {[%clk 0:02:15]}  Rxe1+ {[%clk 0:00:14]} 29. Rxe1 {[%clk 0:02:16]}  Re8 {[%clk 0:00:10]} 30. Rxe8+ {[%clk 0:02:16]}  Nxe8 {[%clk 0:00:11]} 31. Nb4 {[%clk 0:02:08]}  Ned6 {[%clk 0:00:03]} 32. Nxa6 {[%clk 0:02:02]}  Nc4 {[%clk 0:00:04]} 33. Bf1 {[%clk 0:01:59]}  Ncd6 {[%clk 0:00:02]} 34. Nc5 {[%clk 0:01:55]}  Kf8 {[%clk 0:00:02]} 35. a6 {[%clk 0:01:36]}  Ke7 {[%clk 0:00:03]} 36. Nb7 {[%clk 0:01:34]}  Na7 {[%clk 0:00:02]} 37. Bg2 {[%clk 0:01:26]}  Kd7 {[%clk 0:00:02]} 38. Nc5+ {[%clk 0:01:25]}  Kc8 {[%clk 0:00:02]} 39. f4 {[%clk 0:01:23]}  c6 {[%clk 0:00:01]} 40. b4 {[%clk 0:01:18]}  Kc7 {[%clk 0:00:02]} 41. Kf2 {[%clk 0:01:19]}  Kb6 {[%clk 0:00:03]} 42. Bf1 {[%clk 0:01:19]}  Nac8 {[%clk 0:00:02]} 43. Nd7+ {[%clk 0:01:17]}  Ka7 {[%clk 0:00:01]} 44. Ne5 {[%clk 0:01:17]}  f6 {[%clk 0:00:01]} 45. Nxc6+ {[%clk 0:01:17]}  Kb6 {[%clk 0:00:01]} 46. Nd4 {[%clk 0:01:15]}  Na7 {[%clk 0:00:02]} 47. Ne6 {[%clk 0:01:15]}  Ne4+ {[%clk 0:00:02]} 48. Kg2 {[%clk 0:01:15]}  Nd2 {[%clk 0:00:02]} 49. Be2 {[%clk 0:01:14]}  Nb3 {[%clk 0:00:02]} 50. Nxg7 {[%clk 0:01:14]}  Nd4 {[%clk 0:00:02]} 51. Bc4 {[%clk 0:01:13]}  Ndc6 {[%clk 0:00:02]} 52. b5 {[%clk 0:01:10]}  Nxb5 {[%clk 0:00:02]} 53. Bxb5 {[%clk 0:01:09]}  Kxb5 {[%clk 0:00:03]} 54. g4 {[%clk 0:00:53]}  Kxa6 {[%clk 0:00:03]} 55. h4 {[%clk 0:00:44]}  Kb7 {[%clk 0:00:02]} 56. h5 {[%clk 0:00:39]}  gxh5 {[%clk 0:00:01]} 57. gxh5 {[%clk 0:00:39]}  Ne7 {[%clk 0:00:01]} 58. h6 {[%clk 0:00:35]}  Kc8 {[%clk 0:00:01]} 59. f5 {[%clk 0:00:34]}  Kd7 {[%clk 0:00:00]} 60. h7 {[%clk 0:00:34]} 1-0

[Event "January 2 Early 2024"]
[Site "https://www.chess.com"]
[Date "2024.01.02"]
[Round "3"]
[White "Feuerstack, Aljoscha"]
[Black "Mazurkiewicz, Michal"]
[Result "1-0"]
[Board "106"]
[TimeControl "180+1"]
[WhiteFideId "4681932"]
[BlackFideId "1124943"]
[WhiteElo "2651"]
[BlackElo "2415"]
[WhiteTeam "GER"]
[BlackTeam "POL"]
[WhiteClock "0:00:12"]
[BlackClock "0:00:00"]

1. e4 {[%clk 0:03:00]}  d6 {[%clk 0:02:59]} 2. Nc3 {[%clk 0:02:56]}  Nf6 {[%clk 0:03:00]} 3. g3 {[%clk 0:02:56]}  c5 {[%clk 0:02:57]} 4. Bg2 {[%clk 0:02:56]}  g6 {[%clk 0:02:58]} 5. Nf3 {[%clk 0:02:51]}  Bg7 {[%clk 0:02:58]} 6. O-O {[%clk 0:02:51]}  O-O {[%clk 0:02:58]} 7. d4 {[%clk 0:02:48]}  cxd4 {[%clk 0:02:59]} 8. Nxd4 {[%clk 0:02:48]}  Nc6 {[%clk 0:03:00]} 9. Re1 {[%clk 0:02:33]}  Rb8 {[%clk 0:02:57]} 10. h3 {[%clk 0:02:25]}  Nxd4 {[%clk 0:02:57]} 11. Qxd4 {[%clk 0:02:26]}  b5 {[%clk 0:02:57]} 12. Qxa7 {[%clk 0:02:20]}  Be6 {[%clk 0:02:51]} 13. Qe3 {[%clk 0:01:44]}  Qc8 {[%clk 0:02:10]} 14. Kh2 {[%clk 0:01:22]}  b4 {[%clk 0:02:10]} 15. Nd5 {[%clk 0:01:22]}  Bxd5 {[%clk 0:02:09]} 16. exd5 {[%clk 0:01:23]}  Qxc2 {[%clk 0:02:09]} 17. Re2 {[%clk 0:01:10]}  Qc4 {[%clk 0:01:46]} 18. b3 {[%clk 0:01:10]}  Qb5 {[%clk 0:01:47]} 19. Bb2 {[%clk 0:00:49]}  Nxd5 {[%clk 0:01:41]} 20. Bxd5 {[%clk 0:00:45]}  Qxd5 {[%clk 0:01:32]} 21. Bxg7 {[%clk 0:00:46]}  Kxg7 {[%clk 0:01:33]} 22. Qxe7 {[%clk 0:00:40]}  Rbe8 {[%clk 0:00:21]} 23. Qxe8 {[%clk 0:00:40]}  Rxe8 {[%clk 0:00:22]} 24. Rxe8 {[%clk 0:00:40]}  Qd4 {[%clk 0:00:22]} 25. Rf1 {[%clk 0:00:38]}  Qd2 {[%clk 0:00:22]} 26. Kg2 {[%clk 0:00:33]}  Qxa2 {[%clk 0:00:19]} 27. Re3 {[%clk 0:00:34]}  d5 {[%clk 0:00:16]} 28. Rd1 {[%clk 0:00:34]}  Kf6 {[%clk 0:00:16]} 29. Rxd5 {[%clk 0:00:31]}  Qa8 {[%clk 0:00:16]} 30. Rf3+ {[%clk 0:00:27]}  Ke6 {[%clk 0:00:05]} 31. Rd4 {[%clk 0:00:25]}  Qb7 {[%clk 0:00:04]} 32. g4 {[%clk 0:00:22]}  f5 {[%clk 0:00:04]} 33. Kg3 {[%clk 0:00:20]}  Qc7+ {[%clk 0:00:03]} 34. Kg2 {[%clk 0:00:17]}  Qc6 {[%clk 0:00:04]} 35. Rf4 {[%clk 0:00:15]}  Qd5 {[%clk 0:00:03]} 36. gxf5+ {[%clk 0:00:15]}  gxf5 {[%clk 0:00:03]} 37. Rxf5 {[%clk 0:00:12]}  h5 {[%clk 0:00:02]} 38. Rxd5 {[%clk 0:00:12]}  Kxd5 {[%clk 0:00:00]} 39. Rf5+ {[%clk 0:00:12]} 1-0

[Event "January 2 Early 2024"]
[Site "https://www.chess.com"]
[Date "2024.01.02"]
[Round "3"]
[White "Aadit Bhatia"]
[Black "Lizak, Peter"]
[Result "1/2-1/2"]
[Board "107"]
[TimeControl "180+1"]
[WhiteFideId "25088955"]
[BlackFideId "731595"]
[WhiteElo "2413"]
[BlackElo "2651"]
[WhiteTeam "IND"]
[BlackTeam "HUN"]
[WhiteClock "0:00:20"]
[BlackClock "0:00:08"]

1. Nf3 {[%clk 0:03:00]}  Nf6 {[%clk 0:02:59]} 2. g3 {[%clk 0:03:01]}  d5 {[%clk 0:03:00]} 3. Bg2 {[%clk 0:03:02]}  c5 {[%clk 0:03:01]} 4. O-O {[%clk 0:03:02]}  Nc6 {[%clk 0:03:01]} 5. d4 {[%clk 0:03:03]}  e6 {[%clk 0:02:59]} 6. c4 {[%clk 0:03:01]}  Be7 {[%clk 0:02:58]} 7. cxd5 {[%clk 0:03:01]}  exd5 {[%clk 0:02:59]} 8. Nc3 {[%clk 0:02:59]}  O-O {[%clk 0:02:57]} 9. dxc5 {[%clk 0:02:58]}  Bxc5 {[%clk 0:02:58]} 10. Bg5 {[%clk 0:02:58]}  d4 {[%clk 0:02:58]} 11. Bxf6 {[%clk 0:02:45]}  Qxf6 {[%clk 0:02:57]} 12. Ne4 {[%clk 0:02:45]}  Qe7 {[%clk 0:02:58]} 13. Nxc5 {[%clk 0:02:44]}  Qxc5 {[%clk 0:02:59]} 14. Rc1 {[%clk 0:02:44]}  Qb6 {[%clk 0:02:57]} 15. Qd2 {[%clk 0:02:35]}  Be6 {[%clk 0:02:48]} 16. b3 {[%clk 0:02:34]}  Rad8 {[%clk 0:02:48]} 17. Rfd1 {[%clk 0:02:27]}  h6 {[%clk 0:02:47]} 18. Ne1 {[%clk 0:02:23]}  Rfe8 {[%clk 0:02:38]} 19. Nd3 {[%clk 0:02:23]}  Bg4 {[%clk 0:02:31]} 20. Re1 {[%clk 0:02:19]}  Ne5 {[%clk 0:02:01]} 21. Nc5 {[%clk 0:02:13]}  Re7 {[%clk 0:01:37]} 22. h3 {[%clk 0:01:19]}  Bh5 {[%clk 0:01:32]} 23. Nxb7 {[%clk 0:01:00]}  Rxb7 {[%clk 0:01:29]} 24. Bxb7 {[%clk 0:01:01]}  Qxb7 {[%clk 0:01:29]} 25. Qa5 {[%clk 0:01:01]}  Re8 {[%clk 0:01:24]} 26. f4 {[%clk 0:00:49]}  Qe4 {[%clk 0:00:54]} 27. fxe5 {[%clk 0:00:48]}  Qe3+ {[%clk 0:00:52]} 28. Kg2 {[%clk 0:00:49]}  d3 {[%clk 0:00:39]} 29. Qb5 {[%clk 0:00:20]}  Rxe5 {[%clk 0:00:25]} 30. Qxd3 {[%clk 0:00:16]}  Bf3+ {[%clk 0:00:25]} 31. Kf1 {[%clk 0:00:15]}  Qxd3 {[%clk 0:00:02]} 32. exd3 {[%clk 0:00:15]}  Rd5 {[%clk 0:00:02]} 33. Re3 {[%clk 0:00:15]}  Bh5 {[%clk 0:00:02]} 34. Rc7 {[%clk 0:00:16]}  Bg6 {[%clk 0:00:02]} 35. Rxa7 {[%clk 0:00:16]}  Bxd3+ {[%clk 0:00:03]} 36. Kf2 {[%clk 0:00:16]}  Bf5 {[%clk 0:00:03]} 37. Re8+ {[%clk 0:00:16]}  Kh7 {[%clk 0:00:03]} 38. Ree7 {[%clk 0:00:16]}  Be6 {[%clk 0:00:01]} 39. Rxf7 {[%clk 0:00:14]}  Bxf7 {[%clk 0:00:01]} 40. Rxf7 {[%clk 0:00:15]}  Rd2+ {[%clk 0:00:02]} 41. Kf3 {[%clk 0:00:15]}  Rxa2 {[%clk 0:00:02]} 42. Rb7 {[%clk 0:00:15]}  Rb2 {[%clk 0:00:03]} 43. b4 {[%clk 0:00:16]}  Kg6 {[%clk 0:00:04]} 44. b5 {[%clk 0:00:16]}  Kf6 {[%clk 0:00:04]} 45. b6 {[%clk 0:00:17]}  Rb3+ {[%clk 0:00:05]} 46. Kf4 {[%clk 0:00:16]}  Rb4+ {[%clk 0:00:06]} 47. Kf3 {[%clk 0:00:16]}  Rb3+ {[%clk 0:00:06]} 48. Kf2 {[%clk 0:00:16]}  Rb2+ {[%clk 0:00:07]} 49. Ke3 {[%clk 0:00:17]}  Rb3+ {[%clk 0:00:07]} 50. Kd4 {[%clk 0:00:17]}  Rxg3 {[%clk 0:00:08]} 51. Rc7 {[%clk 0:00:18]}  Rb3 {[%clk 0:00:08]} 52. b7 {[%clk 0:00:19]}  g5 {[%clk 0:00:08]} 53. Kc5 {[%clk 0:00:19]}  h5 {[%clk 0:00:08]} 54. Kc6 {[%clk 0:00:20]}  g4 {[%clk 0:00:06]} 55. hxg4 {[%clk 0:00:19]}  hxg4 {[%clk 0:00:07]} 56. Rc8 {[%clk 0:00:20]}  Kf5 {[%clk 0:00:07]} 57. b8=Q {[%clk 0:00:20]}  Rxb8 {[%clk 0:00:07]} 58. Rxb8 {[%clk 0:00:21]}  Ke4 {[%clk 0:00:05]} 59. Rf8 {[%clk 0:00:20]}  g3 {[%clk 0:00:05]} 60. Rg8 {[%clk 0:00:19]}  Kf3 {[%clk 0:00:05]} 61. Kd5 {[%clk 0:00:20]}  g2 {[%clk 0:00:05]} 62. Kd4 {[%clk 0:00:20]}  Kf2 {[%clk 0:00:06]} 63. Rf8+ {[%clk 0:00:21]}  Ke2 {[%clk 0:00:07]} 64. Rg8 {[%clk 0:00:21]}  Kf2 {[%clk 0:00:07]} 65. Rf8+ {[%clk 0:00:22]}  Ke2 {[%clk 0:00:08]} 66. Re8+ {[%clk 0:00:22]}  Kf2 {[%clk 0:00:08]} 67. Rf8+ {[%clk 0:00:20]} 1/2-1/2

[Event "January 2 Early 2024"]
[Site "https://www.chess.com"]
[Date "2024.01.02"]
[Round "3"]
[White "Tanriverdi, Enes"]
[Black "Batbold, Nyamsuren"]
[Result "1-0"]
[Board "109"]
[TimeControl "180+1"]
[WhiteFideId "34543279"]
[BlackFideId "4903331"]
[WhiteElo "2651"]
[BlackElo "2410"]
[WhiteTeam "TUR"]
[BlackTeam "MGL"]
[WhiteClock "0:00:06"]
[BlackClock "0:00:02"]

1. Nf3 {[%clk 0:02:59]}  b6 {[%clk 0:02:58]} 2. e4 {[%clk 0:02:59]}  Bb7 {[%clk 0:02:59]} 3. Nc3 {[%clk 0:02:58]}  c5 {[%clk 0:02:58]} 4. d4 {[%clk 0:02:58]}  cxd4 {[%clk 0:02:58]} 5. Nxd4 {[%clk 0:02:59]}  g6 {[%clk 0:02:59]} 6. h4 {[%clk 0:02:56]}  h5 {[%clk 0:02:58]} 7. Bg5 {[%clk 0:02:54]}  Bg7 {[%clk 0:02:58]} 8. Qd2 {[%clk 0:02:53]}  Nc6 {[%clk 0:02:58]} 9. Nb3 {[%clk 0:02:27]}  Nf6 {[%clk 0:02:56]} 10. O-O-O {[%clk 0:02:27]}  d6 {[%clk 0:02:53]} 11. f3 {[%clk 0:02:25]}  Nd7 {[%clk 0:02:43]} 12. Nd5 {[%clk 0:02:23]}  a5 {[%clk 0:02:28]} 13. a4 {[%clk 0:02:20]}  Rc8 {[%clk 0:02:07]} 14. Bb5 {[%clk 0:02:18]}  f6 {[%clk 0:01:24]} 15. Be3 {[%clk 0:02:16]}  Kf7 {[%clk 0:01:18]} 16. Nf4 {[%clk 0:02:14]}  Nce5 {[%clk 0:01:09]} 17. Kb1 {[%clk 0:02:07]}  Nc5 {[%clk 0:01:07]} 18. Qe2 {[%clk 0:01:59]}  Nxb3 {[%clk 0:01:05]} 19. cxb3 {[%clk 0:01:57]}  Bh6 {[%clk 0:00:53]} 20. g3 {[%clk 0:01:51]}  f5 {[%clk 0:00:46]} 21. Bd4 {[%clk 0:01:46]}  Bxf4 {[%clk 0:00:24]} 22. gxf4 {[%clk 0:01:45]}  Nxf3 {[%clk 0:00:24]} 23. Bxh8 {[%clk 0:01:40]}  Bxe4+ {[%clk 0:00:24]} 24. Ka2 {[%clk 0:01:39]}  Qxh8 {[%clk 0:00:23]} 25. Bc4+ {[%clk 0:01:30]}  Kf8 {[%clk 0:00:22]} 26. Qe3 {[%clk 0:01:23]}  Qf6 {[%clk 0:00:18]} 27. Qxb6 {[%clk 0:01:16]}  Nd2 {[%clk 0:00:17]} 28. Rxd2 {[%clk 0:00:58]}  Bxh1 {[%clk 0:00:17]} 29. Qxa5 {[%clk 0:00:58]}  Qxh4 {[%clk 0:00:17]} 30. Qa6 {[%clk 0:00:52]}  Ra8 {[%clk 0:00:16]} 31. Qb6 {[%clk 0:00:33]}  Qxf4 {[%clk 0:00:17]} 32. Rf2 {[%clk 0:00:33]}  Qe5 {[%clk 0:00:16]} 33. Re2 {[%clk 0:00:29]}  Be4 {[%clk 0:00:16]} 34. Bd3 {[%clk 0:00:24]}  Qa5 {[%clk 0:00:15]} 35. Qd4 {[%clk 0:00:20]}  Bxd3 {[%clk 0:00:13]} 36. Qxd3 {[%clk 0:00:14]}  Qb4 {[%clk 0:00:13]} 37. Qd5 {[%clk 0:00:07]}  Ra5 {[%clk 0:00:12]} 38. Qe6 {[%clk 0:00:06]}  Re5 {[%clk 0:00:12]} 39. Rxe5 {[%clk 0:00:04]}  dxe5 {[%clk 0:00:12]} 40. Qxg6 {[%clk 0:00:04]}  f4 {[%clk 0:00:10]} 41. Qf5+ {[%clk 0:00:04]}  Ke8 {[%clk 0:00:10]} 42. Qxh5+ {[%clk 0:00:03]}  Kd7 {[%clk 0:00:10]} 43. Qxe5 {[%clk 0:00:04]}  Qd6 {[%clk 0:00:08]} 44. Qf5+ {[%clk 0:00:03]}  e6 {[%clk 0:00:08]} 45. Qe4 {[%clk 0:00:04]}  e5 {[%clk 0:00:08]} 46. Qf5+ {[%clk 0:00:03]}  Kc6 {[%clk 0:00:08]} 47. Qc8+ {[%clk 0:00:03]}  Qc7 {[%clk 0:00:08]} 48. Qa6+ {[%clk 0:00:04]}  Qb6 {[%clk 0:00:08]} 49. Qc4+ {[%clk 0:00:04]}  Qc5 {[%clk 0:00:08]} 50. Qe6+ {[%clk 0:00:03]}  Kb7 {[%clk 0:00:09]} 51. Qf7+ {[%clk 0:00:03]}  Kb6 {[%clk 0:00:09]} 52. Qf6+ {[%clk 0:00:03]}  Ka5 {[%clk 0:00:09]} 53. Qf5 {[%clk 0:00:03]}  Qd4 {[%clk 0:00:09]} 54. Qc8 {[%clk 0:00:03]}  Qe3 {[%clk 0:00:05]} 55. Qb7 {[%clk 0:00:02]}  Qc5 {[%clk 0:00:02]} 56. Qa8+ {[%clk 0:00:01]}  Kb6 {[%clk 0:00:02]} 57. Qe4 {[%clk 0:00:01]}  Kc7 {[%clk 0:00:02]} 58. b4 {[%clk 0:00:02]}  Qd4 {[%clk 0:00:02]} 59. Qc2+ {[%clk 0:00:01]}  Kd6 {[%clk 0:00:02]} 60. Qb3 {[%clk 0:00:02]}  Qd5 {[%clk 0:00:03]} 61. b5 {[%clk 0:00:02]}  Qxb3+ {[%clk 0:00:03]} 62. Kxb3 {[%clk 0:00:03]}  Kc5 {[%clk 0:00:04]} 63. Kc3 {[%clk 0:00:04]}  e4 {[%clk 0:00:05]} 64. b4+ {[%clk 0:00:04]}  Kb6 {[%clk 0:00:05]} 65. Kd4 {[%clk 0:00:04]}  e3 {[%clk 0:00:05]} 66. Kd3 {[%clk 0:00:04]}  Kb7 {[%clk 0:00:06]} 67. a5 {[%clk 0:00:04]}  Ka7 {[%clk 0:00:06]} 68. b6+ {[%clk 0:00:04]}  Ka6 {[%clk 0:00:06]} 69. Ke2 {[%clk 0:00:04]}  Kb7 {[%clk 0:00:07]} 70. b5 {[%clk 0:00:05]}  Kb8 {[%clk 0:00:07]} 71. a6 {[%clk 0:00:05]}  Ka8 {[%clk 0:00:07]} 72. Kf3 {[%clk 0:00:05]}  Kb8 {[%clk 0:00:07]} 73. b7 {[%clk 0:00:06]}  Ka7 {[%clk 0:00:07]} 74. b6+ {[%clk 0:00:05]}  Kb8 {[%clk 0:00:07]} 75. Ke2 {[%clk 0:00:05]}  f3+ {[%clk 0:00:08]} 76. Kxf3 {[%clk 0:00:06]}  e2 {[%clk 0:00:08]} 77. a7+ {[%clk 0:00:06]}  Kxb7 {[%clk 0:00:02]} 78. Kxe2 {[%clk 0:00:06]} 1-0

[Event "January 2 Early 2024"]
[Site "https://www.chess.com"]
[Date "2024.01.02"]
[Round "3"]
[White "Mikhalsky, Vladimir"]
[Black "Gontcharov, Vladislav"]
[Result "0-1"]
[Board "110"]
[TimeControl "180+1"]
[WhiteFideId "14144352"]
[BlackFideId "4123492"]
[WhiteElo "2409"]
[BlackElo "2649"]
[WhiteTeam "UKR"]
[BlackTeam "RUS"]
[WhiteClock "0:00:47"]
[BlackClock "0:00:35"]

1. d4 {[%clk 0:02:59]}  Nf6 {[%clk 0:02:58]} 2. c4 {[%clk 0:02:59]}  c5 {[%clk 0:02:58]} 3. Nf3 {[%clk 0:02:58]}  cxd4 {[%clk 0:02:57]} 4. Nxd4 {[%clk 0:02:58]}  e5 {[%clk 0:02:58]} 5. Nb5 {[%clk 0:02:59]}  d5 {[%clk 0:02:58]} 6. cxd5 {[%clk 0:02:59]}  Bc5 {[%clk 0:02:58]} 7. N5c3 {[%clk 0:02:49]}  O-O {[%clk 0:02:37]} 8. e3 {[%clk 0:02:47]}  Qe7 {[%clk 0:02:23]} 9. Be2 {[%clk 0:02:31]}  e4 {[%clk 0:02:20]} 10. Nd2 {[%clk 0:02:28]}  Rd8 {[%clk 0:02:17]} 11. Qc2 {[%clk 0:02:25]}  Bf5 {[%clk 0:02:12]} 12. g4 {[%clk 0:02:15]}  Nxg4 {[%clk 0:01:53]} 13. Ndxe4 {[%clk 0:02:08]}  Bb4 {[%clk 0:01:45]} 14. Bxg4 {[%clk 0:01:39]}  Bxe4 {[%clk 0:01:29]} 15. Qb3 {[%clk 0:01:19]}  Bxd5 {[%clk 0:01:21]} 16. Qa4 {[%clk 0:01:14]}  Bxh1 {[%clk 0:01:18]} 17. Bd2 {[%clk 0:01:13]}  Bc6 {[%clk 0:01:09]} 18. Qc2 {[%clk 0:01:10]}  Nd7 {[%clk 0:00:48]} 19. O-O-O {[%clk 0:01:08]}  Ne5 {[%clk 0:00:48]} 20. Bf5 {[%clk 0:01:06]}  g6 {[%clk 0:00:45]} 21. Rg1 {[%clk 0:01:05]}  Rxd2 {[%clk 0:00:35]} 22. Qxd2 {[%clk 0:00:47]}  Nf3 {[%clk 0:00:35]} 0-1

[Event "January 2 Early 2024"]
[Site "https://www.chess.com"]
[Date "2024.01.02"]
[Round "3"]
[White "Grave, Jacob Templen"]
[Black "Volkov, Maksim"]
[Result "0-1"]
[Board "111"]
[TimeControl "180+1"]
[WhiteFideId "1542656"]
[BlackFideId "54123070"]
[WhiteElo "2407"]
[BlackElo "2644"]
[WhiteTeam "NOR"]
[BlackTeam "RUS"]
[WhiteClock "0:00:02"]
[BlackClock "0:00:12"]

1. d4 {[%clk 0:03:00]}  Nf6 {[%clk 0:02:59]} 2. c4 {[%clk 0:03:01]}  e6 {[%clk 0:03:00]} 3. Nc3 {[%clk 0:03:01]}  Bb4 {[%clk 0:03:00]} 4. f3 {[%clk 0:03:01]}  d5 {[%clk 0:02:59]} 5. a3 {[%clk 0:03:01]}  Be7 {[%clk 0:03:00]} 6. e4 {[%clk 0:03:00]}  dxe4 {[%clk 0:03:00]} 7. fxe4 {[%clk 0:03:01]}  c5 {[%clk 0:03:01]} 8. d5 {[%clk 0:03:00]}  exd5 {[%clk 0:03:01]} 9. exd5 {[%clk 0:03:00]}  O-O {[%clk 0:03:02]} 10. Be2 {[%clk 0:02:53]}  a6 {[%clk 0:02:54]} 11. Nf3 {[%clk 0:02:37]}  Bd6 {[%clk 0:02:54]} 12. O-O {[%clk 0:02:38]}  Bg4 {[%clk 0:02:45]} 13. Bg5 {[%clk 0:02:31]}  Nbd7 {[%clk 0:02:41]} 14. Nd2 {[%clk 0:02:22]}  Bxe2 {[%clk 0:02:39]} 15. Qxe2 {[%clk 0:02:20]}  h6 {[%clk 0:02:38]} 16. Bh4 {[%clk 0:02:17]}  Re8 {[%clk 0:02:38]} 17. Qf3 {[%clk 0:02:15]}  Be5 {[%clk 0:02:30]} 18. Nde4 {[%clk 0:02:06]}  Qb6 {[%clk 0:02:29]} 19. Kh1 {[%clk 0:01:36]}  Bd4 {[%clk 0:02:15]} 20. Rad1 {[%clk 0:01:27]}  Qxb2 {[%clk 0:01:50]} 21. Nxf6+ {[%clk 0:00:42]}  Bxf6 {[%clk 0:01:41]} 22. Bxf6 {[%clk 0:00:39]}  Nxf6 {[%clk 0:01:39]} 23. Na4 {[%clk 0:00:38]}  Qc2 {[%clk 0:01:29]} 24. Nxc5 {[%clk 0:00:34]}  Qxc4 {[%clk 0:01:09]} 25. Nxb7 {[%clk 0:00:34]}  Re7 {[%clk 0:01:00]} 26. d6 {[%clk 0:00:33]}  Rd7 {[%clk 0:00:52]} 27. Rc1 {[%clk 0:00:20]}  Qe4 {[%clk 0:00:46]} 28. Rc7 {[%clk 0:00:10]}  Qxf3 {[%clk 0:00:39]} 29. gxf3 {[%clk 0:00:11]}  Rxc7 {[%clk 0:00:37]} 30. dxc7 {[%clk 0:00:12]}  Rc8 {[%clk 0:00:37]} 31. Rc1 {[%clk 0:00:12]}  Nd5 {[%clk 0:00:38]} 32. Rc5 {[%clk 0:00:10]}  Rxc7 {[%clk 0:00:38]} 33. Rxd5 {[%clk 0:00:09]}  Rxb7 {[%clk 0:00:39]} 34. Rd8+ {[%clk 0:00:10]}  Kh7 {[%clk 0:00:39]} 35. Ra8 {[%clk 0:00:08]}  Rb3 {[%clk 0:00:36]} 36. Rxa6 {[%clk 0:00:07]}  Rxf3 {[%clk 0:00:37]} 37. Kg2 {[%clk 0:00:08]}  Rb3 {[%clk 0:00:36]} 38. a4 {[%clk 0:00:07]}  Ra3 {[%clk 0:00:36]} 39. Ra7 {[%clk 0:00:05]}  Kg6 {[%clk 0:00:27]} 40. a5 {[%clk 0:00:04]}  f5 {[%clk 0:00:25]} 41. a6 {[%clk 0:00:04]}  Kf6 {[%clk 0:00:26]} 42. Ra8 {[%clk 0:00:04]}  Kg5 {[%clk 0:00:26]} 43. a7 {[%clk 0:00:03]}  g6 {[%clk 0:00:26]} 44. Kf2 {[%clk 0:00:02]}  h5 {[%clk 0:00:21]} 45. Kg2 {[%clk 0:00:02]}  h4 {[%clk 0:00:21]} 46. h3 {[%clk 0:00:01]}  Kf4 {[%clk 0:00:18]} 47. Rg8 {[%clk 0:00:02]}  Rxa7 {[%clk 0:00:15]} 48. Rxg6 {[%clk 0:00:02]}  Ra2+ {[%clk 0:00:16]} 49. Kg1 {[%clk 0:00:02]}  Ra3 {[%clk 0:00:16]} 50. Kh2 {[%clk 0:00:02]}  Ra2+ {[%clk 0:00:16]} 51. Kh1 {[%clk 0:00:02]}  Kf3 {[%clk 0:00:16]} 52. Rg5 {[%clk 0:00:01]}  f4 {[%clk 0:00:15]} 53. Rg4 {[%clk 0:00:02]}  Rb2 {[%clk 0:00:12]} 54. Rxh4 {[%clk 0:00:01]}  Kg3 {[%clk 0:00:13]} 55. Rg4+ {[%clk 0:00:02]}  Kxh3 {[%clk 0:00:13]} 56. Rg1 {[%clk 0:00:02]}  Rh2# {[%clk 0:00:12]} 0-1